fUST/lending_fUST_20240926
["ID","MTS","AMOUNT","RATE_DAILY","PERIOD"]
[339218226,1727360847146,-500.0,0.00014966,2]
[339218227,1727360847166,-500.0,0.00014966,2]
[339218228,1727360847187,-156.89703625,0.00014966,2]
[339218229,1727360847208,-500.0,0.00014966,2]
[339218230,1727360847230,-500.0,0.00014966,2]
[339218231,1727360847253,-500.0,0.00014966,2]
[339218232,1727360847274,-6503.40179401,0.00014968,2]
[339218233,1727360847299,-665.699507,0.00014976,2]
[339218234,1727360847319,-7494.2597517,0.0001502,2]
[339218235,1727360847339,-166.666666,0.00015068,2]
[339218236,1727360847359,-8884.850625,0.00015107,2]
[339218237,1727360847380,-387.04148,0.00015138,2]
[339218238,1727360847401,-500.0,0.00015342,2]
[339218239,1727360847423,-166.666666,0.00015421,2]
[339218240,1727360847443,-1804.28829037,0.00015498,2]
[339218241,1727360847463,-655.61088456,0.00015598,2]
[339218242,1727360847484,-565.0,0.000156,2]
[339218243,1727360847505,-976.3371043,0.00015607,2]
[339218244,1727360847525,-238.63439174,0.0001566,2]
[339218245,1727360847551,-665.699507,0.00015661,2]
[339218246,1727360847572,-420.0,0.00015676,2]
[339218247,1727360847593,-518.128776,0.00015742,2]
[339218248,1727360847613,-271.331706,0.00015742,2]
[339218249,1727360847773,-271.331706,0.00015742,2]
[339218250,1727360847802,-271.331706,0.00015742,2]
[339218251,1727360847825,-542.663412,0.00015742,2]
[339218252,1727360847844,-598.930246,0.00015742,2]
[339218253,1727360847865,-178.262918,0.00015742,2]
[339218254,1727360847885,-420.0,0.00015745,2]
[339218255,1727360847905,-166.666666,0.00015774,2]
[339218256,1727360847925,-500.0,0.00015824,2]
[339218257,1727360847947,-500.0,0.00015824,2]
[339218258,1727360847968,-506.81495361,0.00015824,2]
[339218259,1727360847987,-259.45281433,0.00015938,2]
[339218260,1727360848008,-183.68342913,0.00015938,2]
[339218261,1727360848029,-500.0,0.00015938,2]
[339218262,1727360848050,-244.8701679,0.00015938,2]
[339218263,1727360848072,-500.0,0.00015938,2]
[339218264,1727360848093,-500.0,0.00015938,2]
[339218265,1727360848114,-270.97192702,0.00015938,2]
[339218266,1727360848135,-518.128776,0.00015939,2]
[339218267,1727360848157,-271.331706,0.00015939,2]
[339218268,1727360848177,-271.331706,0.00015939,2]
[339218269,1727360848198,-271.331706,0.00015939,2]
[339218270,1727360848220,-542.663412,0.00015939,2]
[339218271,1727360848241,-598.930246,0.00015939,2]
[339218272,1727360848262,-178.262918,0.00015939,2]
[339218273,1727360848286,-158.1263908,0.00015945,2]
[339218274,1727360848306,-3000.0,0.00016,2]
[339218275,1727360848329,-3000.0,0.0001601,2]
[339218276,1727360848350,-3000.0,0.0001602,2]
[339218277,1727360848372,-3000.0,0.0001603,2]
[339218278,1727360848393,-3000.0,0.0001604,2]
[339218279,1727360848415,-3000.0,0.0001605,2]
[339218280,1727360848436,-151.0,0.0001605,2]
[339218281,1727360848459,-468.944613,0.0001605,2]
[339218282,1727360848480,-468.944613,0.0001605,2]
[339218283,1727360848501,-151.0,0.0001605,2]
[339218284,1727360848521,-370.610765,0.0001605,2]
[339218285,1727360848543,-162.900874,0.0001605,2]
[339218286,1727360848563,-370.610765,0.0001605,2]
[339218287,1727360848585,-156.381959,0.0001605,2]
[339218288,1727360848606,-156.381959,0.0001605,2]
[339218289,1727360848627,-3000.0,0.0001606,2]
[339218290,1727360848652,-3000.0,0.0001607,2]
[339218291,1727360848674,-3000.0,0.0001608,2]
[339218292,1727360848696,-3000.0,0.0001609,2]
[339218293,1727360848717,-3000.0,0.000161,2]
[339218294,1727360848741,-339.436071,0.000161,6]
[339218295,1727360848762,-3932.011785,0.0001611,2]
[339218296,1727360848785,-166.666666,0.00016126,2]
[339218297,1727360848805,-518.128776,0.00016136,2]
[339218298,1727360848827,-271.331706,0.00016136,2]
[339218299,1727360848849,-271.331706,0.00016136,2]
[339218300,1727360848870,-271.331706,0.00016136,2]
[339218301,1727360848891,-542.663412,0.00016136,2]
[339218302,1727360848912,-598.930246,0.00016136,2]
[339218303,1727360848932,-178.262918,0.00016136,2]
[339218304,1727360848953,-156.30471801,0.00016167,2]
[339218305,1727360848973,-600.0,0.00016267,2]
[339218306,1727360848999,-1151.65663372,0.00016267,2]
[339218307,1727360849019,-681.84,0.000163,2]
[339218308,1727360849043,-518.128776,0.00016333,2]
[339218309,1727360849065,-271.331706,0.00016333,2]
[339218310,1727360849087,-271.331706,0.00016333,2]
[339218311,1727360849109,-271.331706,0.00016333,2]
[339218312,1727360849130,-542.663412,0.00016333,2]
[339218313,1727360849152,-598.930246,0.00016333,2]
[339218314,1727360849174,-178.262918,0.00016333,2]
[339218315,1727360849196,-151.0,0.00016333,2]
[339218316,1727360849218,-468.944613,0.00016333,2]
[339218317,1727360849239,-468.944613,0.00016333,2]
[339218318,1727360849261,-151.0,0.00016333,2]
[339218319,1727360849283,-370.610765,0.00016333,2]
[339218320,1727360849305,-370.610765,0.00016333,2]
[339218321,1727360849326,-156.381959,0.00016333,2]
[339218322,1727360849347,-156.381959,0.00016333,2]
[339218323,1727360849368,-665.699507,0.00016346,2]
[339218324,1727360849388,-1000.0,0.00016371,2]
[339218325,1727360849408,-1000.0,0.00016371,2]
[339218326,1727360849429,-501.50871244,0.0001645,2]
[339218327,1727360849449,-238.63439174,0.00016452,2]
[339218328,1727360849468,-166.666666,0.00016479,2]
[339218329,1727360849489,-518.128776,0.0001653,2]
[339218330,1727360849510,-271.331706,0.0001653,2]
[339218331,1727360849534,-271.331706,0.0001653,2]
[339218332,1727360849555,-271.331706,0.0001653,2]
[339218333,1727360849576,-542.663412,0.0001653,2]
[339218334,1727360849599,-598.930246,0.0001653,2]
[339218335,1727360849619,-178.262918,0.0001653,2]
[339218336,1727360849643,-151.0,0.00016552,2]
[339218337,1727360849664,-151.0,0.00016552,2]
[339218338,1727360849686,-151.0,0.00016552,2]
[339218339,1727360849708,-151.0,0.00016552,2]
[339218340,1727360849731,-310.588226,0.00016552,2]
[339218341,1727360849753,-310.588226,0.00016552,2]
[339218342,1727360849774,-310.588226,0.00016552,2]
[339218343,1727360849798,-310.588226,0.00016552,2]
[339218344,1727360849818,-151.0,0.00016552,2]
[339218345,1727360849839,-151.0,0.00016552,2]
[339218346,1727360849860,-151.0,0.00016552,2]
[339218347,1727360849881,-151.0,0.00016552,2]
[339218348,1727360849903,-687.131232,0.00016552,2]
[339218349,1727360849923,-687.131232,0.00016552,2]
[339218350,1727360849944,-687.131232,0.00016552,2]
[339218351,1727360849965,-687.131232,0.00016552,2]
[339218352,1727360849986,-383.865791,0.00016552,2]
[339218353,1727360850007,-383.865791,0.00016552,2]
[339218354,1727360850028,-383.865791,0.00016552,2]
[339218355,1727360850053,-383.865791,0.00016552,2]
[339218356,1727360850074,-468.944613,0.00016552,2]
[339218357,1727360850096,-468.944613,0.00016552,2]
[339218358,1727360850118,-468.944613,0.00016552,2]
[339218359,1727360850140,-468.944613,0.00016552,2]
[339218360,1727360850162,-370.610765,0.00016552,2]
[339218361,1727360850184,-370.610765,0.00016552,2]
[339218362,1727360850205,-370.610765,0.00016552,2]
[339218363,1727360850227,-370.610765,0.00016552,2]
[339218364,1727360850251,-156.381959,0.00016552,2]
[339218365,1727360850272,-156.381959,0.00016552,2]
[339218366,1727360850299,-156.381959,0.00016552,2]
[339218367,1727360850321,-156.381959,0.00016552,2]
[339218368,1727360850344,-55372.8744368,0.00016552,2]
[339218369,1727360850365,-59488.4229754,0.00016552,2]
[339218370,1727360850388,-151.0,0.00016563,2]
[339218371,1727360850411,-250.496675,0.00016563,2]
[339218372,1727360850434,-310.588226,0.00016563,2]
[339218373,1727360850456,-310.588226,0.00016563,2]
[339218374,1727360850478,-152.11139,0.00016563,2]
[339218375,1727360850501,-687.131232,0.00016563,2]
[339218376,1727360850523,-687.131232,0.00016563,2]
[339218377,1727360850548,-383.865791,0.00016563,2]
[339218378,1727360850571,-383.865791,0.00016563,2]
[339218379,1727360850592,-500.45794701,0.00016573,2]
[339218380,1727360850614,-306.05783109,0.00016573,2]
[339218381,1727360850636,-300.6128815,0.00016602,2]
[339218382,1727360850663,-500.0,0.00016712,2]
[339218383,1727360850686,-380.0,0.000168,2]
[339218384,1727360850707,-166.666666,0.00016832,2]
[339218385,1727360850729,-3204.998,0.00017077,2]
[339218386,1727360850751,-300.133,0.00017077,2]
[339218387,1727360850775,-38631.87657904,0.00017124,2]
[339218569,1727361038507,-500.0,0.00015068,2]
[339218571,1727361038517,-2312.5594799,0.00015662,2]
[339218572,1727361038527,-700.0,0.000158,2]
[339218573,1727361038537,-162.82728621,0.0001594,2]
[339218574,1727361038546,-193.52074,0.00015947,2]
[339218575,1727361038555,-500.0,0.00015989,2]
[339218576,1727361038565,-1410.1451462,0.00016003,2]
[339218577,1727361038574,-151.0,0.00016028,2]
[339218578,1727361038583,-151.0,0.0001604,2]
[339218579,1727361038592,-151.0,0.0001604,2]
[339218580,1727361038602,-151.0,0.0001604,2]
[339218581,1727361038612,-151.0,0.0001604,2]
[339218582,1727361038622,-151.0,0.0001604,2]
[339218583,1727361038631,-300.0,0.00016048,2]
[339218584,1727361038640,-300.0,0.00016049,2]
[339218585,1727361038654,-317.133843,0.0001605,2]
[339218586,1727361038664,-317.133843,0.0001605,2]
[339218587,1727361038673,-151.0,0.00016267,2]
[339218588,1727361038683,-151.0,0.00016267,2]
[339218589,1727361038694,-151.0,0.00016267,2]
[339218590,1727361038704,-151.0,0.00016267,2]
[339218592,1727361038713,-190.288558,0.00016267,2]
[339218594,1727361038722,-317.133843,0.00016333,2]
[339218596,1727361038732,-317.133843,0.00016333,2]
[339218597,1727361038742,-500.0,0.00016438,2]
[339218598,1727361038751,-162.82728619,0.00016482,2]
[339218599,1727361038761,-500.0,0.00016537,2]
[339218600,1727361038770,-151.0,0.00016552,2]
[339218601,1727361038780,-155.688908,0.00016552,2]
[339218602,1727361038789,-151.0,0.00016552,2]
[339218603,1727361038798,-151.0,0.00016552,2]
[339218604,1727361038807,-263.27608,0.00016552,2]
[339218605,1727361038817,-317.133843,0.00016552,2]
[339218606,1727361038826,-317.133843,0.00016552,2]
[339218607,1727361038837,-317.133843,0.00016552,2]
[339218608,1727361038847,-317.133843,0.00016552,2]
[339218609,1727361038856,-151.0,0.00016552,2]
[339218610,1727361038865,-151.0,0.00016552,2]
[339218611,1727361038874,-162.82728619,0.00017024,2]
[339218612,1727361038884,-14447.13442096,0.00017124,2]
[339218613,1727361038897,-151.0,0.00017124,2]
[339218614,1727361038906,-317.133843,0.00017124,2]
[339218615,1727361038915,-317.133843,0.00017124,2]
[339218616,1727361038924,-151.0,0.00017124,2]
[339218617,1727361038934,-380.0,0.0001732,2]
[339218618,1727361038943,-150.0,0.00017328,2]
[339218619,1727361038952,-506.98960382,0.00017373,2]
[339218620,1727361038961,-218.075,0.00017423,2]
[339218621,1727361038971,-420.0,0.00017545,2]
[339218622,1727361038980,-2002.29522788,0.000176,2]
[339218623,1727361038989,-716.74579976,0.0001764,2]
[339218624,1727361038999,-420.0,0.00017654,2]
[339218625,1727361039008,-500.0,0.00017706,2]
[339218626,1727361039018,-500.0,0.00017706,2]
[339218627,1727361039027,-218.00905377,0.00017706,2]
[339218628,1727361039037,-500.0,0.00017706,2]
[339218629,1727361039046,-500.0,0.00017706,2]
[339218630,1727361039055,-500.0,0.00017706,2]
[339218631,1727361039065,-356.03201045,0.00017706,2]
[339218632,1727361039074,-6760.60632032,0.00017707,2]
[339218633,1727361039083,-2028.91105185,0.00017708,2]
[339218634,1727361039093,-500.0,0.00017808,2]
[339218635,1727361039102,-151.0,0.00017808,2]
[339218636,1727361039111,-164.315641,0.00017808,2]
[339218637,1727361039120,-380.0,0.0001785,2]
[339218638,1727361039129,-6760.60632032,0.00017861,2]
[339218639,1727361039138,-2000.0,0.00018,2]
[339218640,1727361039149,-8371.78966987,0.00018,2]
[339218641,1727361039158,-151.0,0.00018063,2]
[339218642,1727361039167,-151.0,0.00018063,2]
[339218643,1727361039176,-310.588226,0.00018145,2]
[339218644,1727361039185,-310.588226,0.00018145,2]
[339218645,1727361039194,-383.865791,0.00018145,2]
[339218646,1727361039203,-383.865791,0.00018145,2]
[339218647,1727361039212,-468.944613,0.00018145,2]
[339218648,1727361039221,-468.944613,0.00018145,2]
[339218649,1727361039230,-370.610765,0.00018145,2]
[339218650,1727361039239,-370.610765,0.00018145,2]
[339218651,1727361039248,-156.381959,0.00018145,2]
[339218652,1727361039257,-156.381959,0.00018145,2]
[339218653,1727361039267,-317.133843,0.00018145,2]
[339218654,1727361039277,-317.133843,0.00018145,2]
[339218655,1727361039286,-160.0,0.00018162,3]
[339218656,1727361039296,-6760.60632032,0.00018236,2]
[339218657,1727361039305,-380.0,0.0001837,2]
[339218658,1727361039314,-20201.18755351,0.0001839,2]
[339218659,1727361039323,-181.61697003,0.00018446,2]
[339218660,1727361039333,-500.0,0.00018446,2]
[339218661,1727361039342,-171.40911753,0.00018446,2]
[339218662,1727361039351,-500.0,0.00018446,2]
[339218663,1727361039361,-239.68034891,0.00018446,2]
[339218664,1727361039506,-10698.86638908,0.00018447,2]
[339218665,1727361039518,-6760.60632032,0.00018459,2]
[339218666,1727361039528,-151.69214655,0.00018473,2]
[339218667,1727361039537,-502.95174599,0.00018473,2]
[339218668,1727361039546,-410.47732977,0.00018473,2]
[339218669,1727361039555,-501.7322618,0.00018473,2]
[339218670,1727361039564,-500.0,0.00018473,2]
[339218671,1727361039574,-127833.586287,0.0001848,2]
[339218672,1727361039583,-6369.1910999,0.0001848,2]
[339218673,1727361039592,-310.588226,0.0001849,2]
[339218674,1727361039601,-310.588226,0.0001849,2]
[339218675,1727361039611,-310.588226,0.0001849,2]
[339218676,1727361039621,-310.588226,0.0001849,2]
[339218677,1727361039630,-383.865791,0.0001849,2]
[339218678,1727361039639,-383.865791,0.0001849,2]
[339218679,1727361039651,-383.865791,0.0001849,2]
[339218680,1727361039661,-383.865791,0.0001849,2]
[339218681,1727361039671,-468.944613,0.0001849,2]
[339218682,1727361039682,-468.944613,0.0001849,2]
[339218683,1727361039691,-468.944613,0.0001849,2]
[339218684,1727361039700,-468.944613,0.0001849,2]
[339218685,1727361039710,-370.610765,0.0001849,2]
[339218686,1727361039720,-370.610765,0.0001849,2]
[339218687,1727361039730,-370.610765,0.0001849,2]
[339218688,1727361039740,-370.610765,0.0001849,2]
[339218689,1727361039749,-156.381959,0.0001849,2]
[339218690,1727361039760,-156.381959,0.0001849,2]
[339218691,1727361039770,-156.381959,0.0001849,2]
[339218692,1727361039780,-156.381959,0.0001849,2]
[339218694,1727361039789,-151.0,0.0001849,2]
[339218695,1727361039798,-151.0,0.0001849,2]
[339218697,1727361039807,-317.133843,0.0001849,2]
[339218699,1727361039816,-317.133843,0.0001849,2]
[339218701,1727361039826,-317.133843,0.0001849,2]
[339218703,1727361039835,-317.133843,0.0001849,2]
[339218705,1727361039844,-151.0,0.0001849,2]
[339218706,1727361039853,-151.0,0.0001849,2]
[339218707,1727361039863,-1945.645237,0.000185,2]
[339218708,1727361039874,-477.58728999,0.00018522,2]
[339218709,1727361039883,-6760.60632032,0.00018653,2]
[339218710,1727361039896,-500.9531289,0.00018701,2]
[339218712,1727361039905,-500.0,0.00018701,2]
[339218713,1727361039914,-150.0,0.00018702,2]
[339218715,1727361039923,-600.0,0.0001871,2]
[339218717,1727361039932,-2158.82774869,0.00018882,2]
[339218719,1727361039942,-380.0,0.000189,2]
[339218721,1727361039952,-500.0,0.00018904,2]
[339218722,1727361039961,-1030.56841598,0.00018904,2]
[339218724,1727361039971,-163.319594,0.00018904,2]
[339218726,1727361039981,-600.0,0.00018905,2]
[339218727,1727361039990,-1000.0,0.00018935,2]
[339218729,1727361039999,-1000.0,0.00019,2]
[339218731,1727361040009,-151.0,0.00019,2]
[339218732,1727361040018,-151.0,0.00019,2]
[339218733,1727361040028,-152.68017911,0.00019,2]
[339218734,1727361040037,-151.0,0.00019,2]
[339218736,1727361040046,-1000.0,0.00019,2]
[339218737,1727361040056,-17248.43296247,0.00019,2]
[339218738,1727361040065,-151.0,0.00019,2]
[339218739,1727361040075,-151.0,0.00019,2]
[339218740,1727361040085,-6760.60632032,0.00019004,2]
[339218741,1727361040094,-329.35327823,0.00019021,2]
[339218742,1727361040104,-151.0,0.00019021,2]
[339218743,1727361040114,-151.0,0.00019021,2]
[339218744,1727361040123,-63916.7931436,0.00019025,3]
[339218745,1727361040132,-3184.59554995,0.00019025,3]
[339218746,1727361040141,-151.0,0.00019025,2]
[339218747,1727361040154,-151.0,0.00019025,2]
[339218748,1727361040163,-151.00831979,0.00019025,2]
[339218749,1727361040173,-2000.0,0.00019025,2]
[339218750,1727361040182,-2000.0,0.00019025,2]
[339218751,1727361040191,-2000.0,0.00019025,2]
[339218752,1727361040201,-2019.308315,0.00019025,2]
[339218753,1727361040210,-3166.8829465,0.00019035,2]
[339219008,1727361042703,-23147.15103601,0.00019035,2]
[339219010,1727361042713,-151.0,0.00019035,2]
[339219012,1727361042723,-151.0,0.00019035,2]
[339219014,1727361042733,-151.0,0.00019035,2]
[339219017,1727361042742,-152.669542,0.00019035,2]
[339219020,1727361042753,-171.740965,0.00019035,2]
[339219022,1727361042763,-171.740965,0.00019035,2]
[339219024,1727361042774,-151.0,0.00019035,2]
[339219025,1727361042783,-151.0,0.00019035,2]
[339219028,1727361042793,-520.410621,0.00019035,2]
[339219030,1727361042803,-310.588226,0.00019035,2]
[339219032,1727361042812,-520.410621,0.00019035,2]
[339219034,1727361042822,-310.588226,0.00019035,2]
[339219036,1727361042831,-383.865791,0.00019035,2]
[339219038,1727361042841,-383.865791,0.00019035,2]
[339219040,1727361042850,-468.944613,0.00019035,2]
[339219043,1727361042860,-468.944613,0.00019035,2]
[339219047,1727361042870,-370.610765,0.00019035,2]
[339219051,1727361042881,-370.610765,0.00019035,2]
[339219054,1727361042890,-156.381959,0.00019035,2]
[339219055,1727361042902,-156.381959,0.00019035,2]
[339219058,1727361042915,-151.0,0.00019035,2]
[339219061,1727361042924,-317.133843,0.00019035,2]
[339219064,1727361042933,-317.133843,0.00019035,2]
[339219070,1727361042943,-151.0,0.00019035,2]
[339219073,1727361042952,-496.260868,0.00019035,2]
[339219075,1727361042961,-151.0,0.00019035,2]
[339219078,1727361042971,-496.260868,0.00019035,2]
[339219081,1727361042980,-151.0,0.00019035,2]
[339219084,1727361042990,-151.0,0.00019035,2]
[339219087,1727361042999,-151.0,0.00019035,2]
[339219090,1727361043009,-480.991863,0.00019035,2]
[339219093,1727361043018,-480.991863,0.00019035,2]
[339219096,1727361043028,-151.0,0.00019035,2]
[339219099,1727361043037,-151.0,0.00019035,2]
[339219102,1727361043047,-151.0,0.00019035,2]
[339219105,1727361043058,-151.0,0.00019035,2]
[339219108,1727361043068,-151.0,0.00019035,2]
[339219110,1727361043077,-750.0,0.000191,2]
[339219112,1727361043086,-151.0,0.0001911,2]
[339219114,1727361043095,-151.0,0.0001911,2]
[339219115,1727361043105,-127833.586287,0.0001911,3]
[339219117,1727361043114,-6369.1910999,0.0001911,3]
[339219119,1727361043124,-310.588226,0.0001912,2]
[339219121,1727361043134,-310.588226,0.0001912,2]
[339219123,1727361043144,-310.588226,0.0001912,2]
[339219125,1727361043155,-310.588226,0.0001912,2]
[339219127,1727361043164,-383.865791,0.0001912,2]
[339219129,1727361043174,-383.865791,0.0001912,2]
[339219132,1727361043183,-383.865791,0.0001912,2]
[339219133,1727361043193,-383.865791,0.0001912,2]
[339219135,1727361043202,-468.944613,0.0001912,2]
[339219137,1727361043212,-468.944613,0.0001912,2]
[339219139,1727361043222,-468.944613,0.0001912,2]
[339219140,1727361043231,-468.94461,0.0001912,2]
[339219142,1727361043240,-370.610765,0.0001912,2]
[339219144,1727361043250,-370.610765,0.0001912,2]
[339219146,1727361043259,-370.610765,0.0001912,2]
[339219147,1727361043269,-370.610773,0.0001912,2]
[339219149,1727361043278,-156.381959,0.0001912,2]
[339219151,1727361043289,-156.381959,0.0001912,2]
[339219153,1727361043298,-156.381959,0.0001912,2]
[339219154,1727361043307,-156.381964,0.0001912,2]
[339219156,1727361043317,-317.133843,0.0001912,2]
[339219157,1727361043327,-317.133843,0.0001912,2]
[339219158,1727361043336,-496.260868,0.0001912,2]
[339219159,1727361043345,-496.260868,0.0001912,2]
[339219160,1727361043354,-152.731474,0.0001912,2]
[339219161,1727361043364,-496.260868,0.0001912,2]
[339219162,1727361043373,-496.260868,0.0001912,2]
[339219163,1727361043382,-151.0,0.0001912,2]
[339219164,1727361043392,-151.0,0.0001912,2]
[339219165,1727361043406,-155.001781,0.0001912,2]
[339219166,1727361043415,-151.0,0.0001912,2]
[339219167,1727361043424,-480.991863,0.0001912,2]
[339219168,1727361043434,-480.991863,0.0001912,2]
[339219169,1727361043444,-480.991863,0.0001912,2]
[339219170,1727361043453,-480.991863,0.0001912,2]
[339219171,1727361043462,-151.0,0.0001912,2]
[339219172,1727361043471,-151.0,0.0001912,2]
[339219174,1727361043481,-151.0,0.0001912,2]
[339219177,1727361043491,-151.0,0.0001912,2]
[339219180,1727361043501,-151.0,0.0001912,2]
[339219182,1727361043510,-151.0,0.0001912,2]
[339219183,1727361043520,-14423.91833767,0.0001915,2]
[339219184,1727361043529,-502.07507827,0.00019173,2]
[339219185,1727361043539,-500.0,0.00019173,2]
[339219186,1727361043548,-500.96559782,0.00019173,2]
[339219187,1727361043558,-507.45875307,0.00019173,2]
[339219188,1727361043566,-272.870487,0.00019178,2]
[339219189,1727361043576,-587.0,0.00019182,2]
[339219190,1727361043585,-160.0,0.0001924,4]
[339219191,1727361043595,-194.31780245,0.0001924,5]
[339219192,1727361043605,-6760.60632035,0.00019406,2]
[339219193,1727361043615,-587.0,0.00019419,2]
[339219194,1727361043625,-2816.57245028,0.0001944,3]
[339219200,1727361043885,-525.0,0.00017124,2]
[339219202,1727361043896,-6737.21419957,0.0001944,3]
[339219204,1727361043907,-151.0,0.00019441,2]
[339219205,1727361043917,-151.0,0.00019441,2]
[339219206,1727361043926,-1000.0,0.00019441,2]
[339219207,1727361043936,-1000.0,0.00019441,2]
[339219208,1727361043946,-1000.0,0.00019441,2]
[339219209,1727361043955,-1000.0,0.00019441,2]
[339219210,1727361043964,-1000.0,0.00019441,2]
[339219211,1727361043973,-1000.0,0.00019441,2]
[339219212,1727361043983,-1000.0,0.00019441,2]
[339219213,1727361043992,-1000.0,0.00019441,2]
[339219214,1727361044001,-1000.0,0.00019441,2]
[339219215,1727361044010,-1000.0,0.00019441,2]
[339219216,1727361044020,-1000.0,0.00019441,2]
[339219217,1727361044029,-1000.0,0.00019441,2]
[339219218,1727361044039,-1000.0,0.00019441,2]
[339219219,1727361044048,-1000.0,0.00019441,2]
[339219220,1727361044057,-1000.0,0.00019441,2]
[339219221,1727361044066,-1000.0,0.00019441,2]
[339219222,1727361044075,-1000.0,0.00019441,2]
[339219223,1727361044085,-1000.0,0.00019441,2]
[339219224,1727361044094,-1000.0,0.00019441,2]
[339219225,1727361044103,-1000.0,0.00019441,2]
[339219227,1727361044114,-1000.0,0.00019441,2]
[339219230,1727361044123,-1000.0,0.00019441,2]
[339219232,1727361044135,-1000.0,0.00019441,2]
[339219233,1727361044148,-1000.0,0.00019441,2]
[339219234,1727361044157,-1000.0,0.00019441,2]
[339219236,1727361044167,-1000.0,0.00019441,2]
[339219238,1727361044176,-1000.0,0.00019441,2]
[339219240,1727361044185,-465.6293645,0.00019448,2]
[339219242,1727361044195,-310.588226,0.0001945,2]
[339219243,1727361044204,-310.588234,0.0001945,2]
[339219245,1727361044213,-383.865791,0.0001945,2]
[339219246,1727361044222,-383.865794,0.0001945,2]
[339219248,1727361044232,-496.260868,0.0001945,2]
[339219250,1727361044243,-496.260868,0.0001945,2]
[339219252,1727361044253,-496.260868,0.0001945,2]
[339219254,1727361044262,-496.260868,0.0001945,2]
[339219255,1727361044271,-480.991863,0.0001945,2]
[339219256,1727361044281,-480.991863,0.0001945,2]
[339219257,1727361044290,-480.991863,0.0001945,2]
[339219258,1727361044299,-480.991863,0.0001945,2]
[339219259,1727361044309,-151.0,0.0001945,2]
[339219260,1727361044319,-151.0,0.0001945,2]
[339219261,1727361044330,-151.0,0.0001945,2]
[339219262,1727361044339,-166.442845,0.0001945,2]
[339219263,1727361044348,-151.0,0.0001945,2]
[339219264,1727361044358,-151.0,0.0001945,2]
[339219265,1727361044367,-3184.59554995,0.0001945,3]
[339219266,1727361044376,-542.60027455,0.00019459,2]
[339219267,1727361044386,-151.0,0.0001946,2]
[339219268,1727361044396,-151.0,0.0001946,2]
[339219269,1727361044406,-151.0,0.0001946,2]
[339219270,1727361044416,-209.41744,0.0001946,2]
[339219271,1727361044425,-151.0,0.0001946,2]
[339219272,1727361044434,-171.740965,0.0001946,2]
[339219273,1727361044444,-171.740965,0.0001946,2]
[339219274,1727361044453,-213.013136,0.0001946,2]
[339219275,1727361044462,-520.410621,0.0001946,2]
[339219276,1727361044472,-520.410621,0.0001946,2]
[339219277,1727361044482,-496.260868,0.0001946,2]
[339219278,1727361044491,-496.260868,0.0001946,2]
[339219279,1727361044501,-496.260868,0.0001946,2]
[339219280,1727361044511,-496.260868,0.0001946,2]
[339219281,1727361044521,-480.991863,0.0001946,2]
[339219282,1727361044531,-480.991863,0.0001946,2]
[339219283,1727361044540,-480.991863,0.0001946,2]
[339219284,1727361044550,-480.991863,0.0001946,2]
[339219285,1727361044559,-151.0,0.0001946,2]
[339219286,1727361044569,-151.0,0.0001946,2]
[339219287,1727361044578,-151.0,0.0001946,2]
[339219288,1727361044587,-151.0,0.0001946,2]
[339219289,1727361044596,-3184.59554995,0.0001946,3]
[339219290,1727361044605,-151.0,0.0001947,2]
[339219291,1727361044614,-151.0,0.0001947,2]